bitfinex-derivatives/quotes_SOLF0:USTF0_20250911
["timestamp","ask_amount","ask_price","bid_price","bid_amount"]
[1757600873750,7.33,225.96,225.75,7.15]
[1757600873946,5.2589431,225.99,225.76,117.76]
[1757600874148,5.2589431,225.99,225.76,75.24]
[1757600874451,7.33,225.98,225.76,75.24]
[1757600874651,7.33,225.98,225.77,7.15]
[1757600875051,7.33,225.98,225.78,50.64]
[1757600875849,7.33,225.98,225.79,62.0]
[1757600876349,7.33,225.98,225.79,101.92]
[1757600876543,9.4989431,226.0,225.79,62.0]
[1757600876846,7.33,225.99,225.79,62.0]
[1757600877052,9.4989431,226.0,225.79,62.0]
[1757600877349,7.36,225.99,225.79,62.0]
[1757600877548,9.4989431,226.0,225.79,62.0]
[1757600877848,22.65518291,226.0,225.79,62.0]
[1757600878044,7.36,225.99,225.79,62.0]
[1757600878246,22.65518291,226.0,225.79,62.0]
[1757600879056,7.36,225.99,225.79,62.0]
[1757600879551,7.36,225.98,225.8,32.43]
[1757600879744,7.36,225.98,225.81,7.43]
[1757600881751,7.36,225.98,225.81,27.67]
[1757600883056,7.36,225.98,225.82,7.43]
[1757600883253,4.24,226.0,225.82,7.43]
[1757600883652,7.36,225.99,225.83,20.1]
[1757600883858,7.36,225.99,225.84,7.43]
[1757600884460,7.36,225.99,225.84,46.59]
[1757600885661,7.36,225.99,225.85,7.43]
[1757600885862,7.36,226.04,225.85,7.43]
[1757600886255,14.56,226.08,225.85,7.43]
[1757600886561,14.56,226.08,225.88,7.43]
[1757600886870,7.36,226.09,225.88,7.43]
[1757600887764,7.36,226.09,225.93,7.43]
[1757600888355,7.36,226.09,225.94,98.82]
[1757600888556,7.36,226.09,225.95,124.23]
[1757600888761,7.36,226.09,225.96,62.0]
[1757600888962,7.36,226.09,225.96,178.8]
[1757600889160,7.36,226.09,225.96,116.8]
[1757600890161,7.36,226.09,225.97,7.43]
[1757600890363,304.82,226.14,225.97,7.43]
[1757600890565,7.36,226.14,225.97,7.43]
[1757600890864,7.36,226.14,225.98,7.43]
[1757600891062,7.36,226.22,225.98,7.43]
[1757600891662,7.36,226.22,225.91,3.68270309]
[1757600891861,7.36,226.03,225.84,7.43]
[1757600892070,7.36,225.98,225.84,7.43]
[1757600892566,7.36,225.98,225.77,7.43]
[1757600892869,5.2589431,225.99,225.77,7.43]
[1757600893091,7.36,225.93,225.77,7.43]
[1757600893468,7.36,225.93,225.7,301.06270309]
[1757600893469,5.2589431,225.94,225.76,90.02]
[1757600893971,7.36,225.93,225.72,7.43]
[1757600894267,5.2589431,225.94,225.72,7.43]
[1757600894470,7.36,225.93,225.72,7.43]
[1757600894659,7.36,225.93,225.73,121.22]
[1757600894864,7.36,225.93,225.74,7.43]
[1757600895467,7.36,225.93,225.75,88.6]
[1757600895669,7.36,225.93,225.77,7.43]
[1757600896168,7.36,225.93,225.78,121.04]
[1757600896369,7.36,225.93,225.77,7.43]
[1757600896974,7.36,225.93,225.71,7.43]
[1757600897472,7.36,225.93,225.72,121.0]
[1757600897669,5.2589431,225.94,225.72,121.0]
[1757600897872,7.36,225.93,225.73,7.43]
[1757600898269,7.36,225.93,225.74,85.86]
[1757600898470,7.36,225.93,225.75,7.43]
[1757600899287,7.36,225.93,225.74,85.86]
[1757600899288,7.36,225.93,225.77,7.43]
[1757600899872,7.36,225.93,225.78,109.4]
[1757600900063,7.36,225.93,225.77,7.43]
[1757600900671,7.36,225.93,225.78,87.46]
[1757600901765,7.36,225.93,225.77,7.43]
[1757600901969,7.36,225.93,225.78,120.68]
[1757600902570,7.36,225.93,225.78,182.68]
[1757600903472,7.36,225.93,225.79,7.43]
[1757600904577,11.98,225.97,225.79,7.43]
[1757600904876,11.98,225.97,225.81,7.43]
[1757600905077,11.98,225.97,225.82,120.24]
[1757600905777,12.6189431,225.99,225.82,120.24]
[1757600906481,12.6189431,225.99,225.83,62.0]
[1757600907179,7.36,225.99,225.84,7.43]
[1757600907568,7.36,225.99,225.85,87.22]
[1757600907974,7.36,225.99,225.85,95.08]
[1757600908882,7.36,225.99,225.86,7.21]
[1757600909779,7.36,225.99,225.87,16.4]
[1757600910382,7.36,225.99,225.88,62.0]
[1757600911077,7.36,225.99,225.86,7.21]
[1757600912785,6.84,226.01,225.81,17.79]
[1757600913079,6.84,226.02,225.81,7.21]
[1757600913875,6.84,225.96,225.81,7.21]
[1757600915084,6.84,225.96,225.77,7.21]
[1757600918188,6.84,225.94,225.77,7.21]
[1757600922789,6.84,225.94,225.79,7.21]
[1757600922994,6.84,226.01,225.79,7.21]
[1757600923189,6.84,226.01,225.8,10.89270309]
[1757600923391,6.84,226.01,225.81,7.21]
[1757600926090,6.84,225.99,225.81,7.21]
[1757600927598,20.12,225.99,225.81,7.21]
[1757600929993,6.84,225.99,225.81,7.21]
[1757600932106,20.12,225.99,225.81,7.21]
[1757600936403,24.90017548,225.99,225.81,7.21]
[1757600938105,6.89,225.97,225.81,7.21]
[1757600939516,50.47,225.97,225.81,7.21]
[1757600940110,55.25017548,225.97,225.81,7.21]
[1757600940412,6.89,225.95,225.81,7.21]
[1757600946918,6.89,226.07,225.85,6.83]
[1757600947114,6.89,226.07,225.9,6.83]
[1757600947613,20.32072941,226.07,225.9,6.83]
[1757600947816,6.89,226.07,225.9,6.83]
[1757600951719,19.85645728,226.07,225.9,6.83]
[1757600951920,37.91663276,226.07,225.9,6.83]
[1757600952128,4.78017548,226.06,225.9,6.83]
[1757600952323,6.89,226.04,225.9,6.83]
[1757600952828,6.89,226.04,225.83,6.83]
[1757600954521,11.67017548,226.04,225.83,6.83]
[1757600955822,4.78017548,226.01,225.83,6.83]
[1757600956027,11.67017548,226.0,225.83,6.83]
[1757600956824,24.95017548,226.0,225.83,6.83]
[1757600957223,4.78017548,225.99,225.83,6.83]
[1757600957422,18.06017548,225.97,225.83,6.83]
[1757600957624,125.09,225.96,225.76,6.83]
[1757600958523,129.87017548,225.96,225.76,6.83]
[1757600958728,6.89,225.94,225.76,6.83]
[1757600960328,36.16,225.93,225.76,6.83]
[1757600960533,6.89,225.92,225.76,6.83]
[1757600963833,24.95017548,225.92,225.76,6.83]
[1757600964335,23.62993141,225.92,225.76,6.83]
[1757600964925,28.41010689,225.92,225.76,6.83]
[1757600965331,23.62993141,225.92,225.76,6.83]
[1757600965536,35.98,225.91,225.76,6.83]
[1757600965732,20.17,225.92,225.76,6.83]
[1757600965934,27.96,225.91,225.76,6.83]
[1757600966237,6.89,225.9,225.76,6.83]
[1757600969338,10.64993141,225.95,225.76,6.83]
[1757600969642,84.26993141,225.95,225.76,6.83]
[1757600972238,80.81,225.95,225.76,6.83]
[1757600972434,80.81,225.95,225.8,7.1]
[1757600974340,80.81,225.95,225.84,2.21253257]
[1757600974537,80.81,225.95,225.85,7.1]
[1757600977644,83.02253257,225.95,225.85,7.1]
[1757600978753,2.21253257,225.94,225.85,7.1]
[1757600980348,80.81,225.95,225.85,7.1]
[1757600982247,2.21253257,225.94,225.85,7.1]
[1757600982452,7.19,225.93,225.85,7.1]
[1757600989661,7.19,226.01,225.85,7.1]
[1757600989862,7.19,225.97,225.85,7.1]
[1757600992265,7.19,225.97,225.88,7.1]
[1757601001368,9.40253257,225.97,225.83,7.42]
[1757601002172,9.40253257,225.97,225.86,9.63253257]
[1757601003276,7.19,225.97,225.86,9.63253257]
[1757601003586,6.92,226.01,225.9,7.42]
[1757601003875,6.92,226.01,225.92,2.21253257]
[1757601004372,297.6,226.02,225.9,9.63253257]
[1757601004572,6.92,225.99,225.87,2.21253257]
[1757601006078,6.92,225.99,225.9,2.21253257]
[1757601007078,6.92,225.99,225.91,7.42]
[1757601008668,6.92,225.99,225.91,9.63253257]
[1757601008873,6.92,225.99,225.91,7.42]
[1757601009081,6.92,225.99,225.91,9.63253257]
[1757601011487,6.92,225.99,225.91,7.42]
[1757601012489,284.69701284,226.04,225.91,7.42]
[1757601012683,6.92,226.03,225.91,7.42]
[1757601013582,2.21253257,226.01,225.87,9.63253257]
[1757601013789,6.92,226.0,225.87,9.63253257]
[1757601014007,6.92,225.99,225.87,9.63253257]
[1757601015178,6.92,225.99,225.88,7.42]
[1757601016190,95.71253257,226.03,225.91,7.42]
[1757601016594,6.92,226.03,225.94,7.42]
[1757601017391,6.92,225.98,225.89,7.42]
[1757601017791,6.92,225.98,225.85,7.42]
[1757601018188,9.13253257,225.98,225.85,7.42]
[1757601018590,6.92,225.98,225.88,7.42]
[1757601021590,2.21253257,225.95,225.88,7.42]
[1757601021794,9.13253257,225.95,225.88,7.42]
[1757601024799,6.92,225.95,225.88,7.42]
[1757601024992,6.92,226.01,225.88,7.42]
[1757601025189,2.21253257,226.0,225.88,7.42]
[1757601025388,6.92,226.01,225.88,7.42]
[1757601025598,9.13253257,226.01,225.88,7.42]
[1757601026898,6.92,226.01,225.88,7.42]
[1757601027192,2.21253257,226.0,225.88,7.42]
[1757601027789,7.16,226.03,225.88,7.42]
[1757601027995,9.37253257,225.99,225.88,7.42]
[1757601028393,2.21253257,225.97,225.88,7.42]
[1757601030706,9.37253257,225.97,225.88,7.42]
[1757601031600,7.16,225.93,225.84,7.2]
[1757601034301,2.21253257,225.9,225.84,7.2]
[1757601035104,9.37253257,225.9,225.77,4.93389362]
[1757601035300,3.50044278,225.89,225.78,7.2]
[1757601035498,9.37253257,225.87,225.74,12.13389362]
[1757601035697,2.21253257,225.84,225.74,7.2]
[1757601035907,7.05370096,225.83,225.74,7.2]
[1757601036105,7.05370096,225.82,225.74,7.2]
[1757601036306,7.05370096,225.81,225.74,7.2]
[1757601036508,3.55325818,225.8,225.74,7.2]
[1757601036703,7.16,225.85,225.74,7.2]
[1757601036907,7.04458681,225.84,225.74,7.2]
[1757601037201,10.62054478,225.9,225.74,7.2]
[1757601037404,7.0435438,225.89,225.74,7.2]
[1757601037602,7.0435438,225.88,225.74,7.2]
[1757601037798,7.0435438,225.87,225.74,7.2]
[1757601038000,7.0435438,225.86,225.74,7.2]
[1757601038203,7.0435438,225.85,225.74,7.2]
[1757601038503,3.54903486,225.84,225.74,7.2]
[1757601038696,3.54903486,225.83,225.74,7.2]
[1757601038906,7.16,225.9,225.74,7.2]
[1757601039207,7.03951087,225.89,225.74,7.2]
[1757601039403,7.03951087,225.88,225.74,7.2]
[1757601039708,14.19951087,225.87,225.74,7.2]
[1757601040007,7.03951087,225.86,225.74,7.2]
[1757601040311,3.54701056,225.85,225.74,7.2]
[1757601040601,3.46054478,225.92,225.74,7.2]
[1757601040807,7.03071232,225.91,225.74,7.2]
[1757601041005,7.03071232,225.9,225.74,7.2]
[1757601041201,7.03071232,225.89,225.74,7.2]
[1757601041400,7.03071232,225.88,225.74,7.2]
[1757601041702,3.54251342,225.87,225.74,7.2]
[1757601041902,7.16,225.94,225.75,7.2]
[1757601042208,7.03321072,225.93,225.75,7.2]
[1757601042410,7.03321072,225.92,225.75,7.2]
[1757601042601,7.03321072,225.91,225.75,7.2]
[1757601042803,7.03321072,225.9,225.75,7.2]
[1757601042998,7.03321072,225.89,225.75,7.2]
[1757601043207,3.54381933,225.88,225.75,7.2]
[1757601043422,7.16,225.95,225.77,3.46054478]
[1757601043611,7.04301157,225.94,225.78,7.2]
[1757601043805,3.54875409,225.93,225.78,7.2]
[1757601044004,7.16,225.98,225.82,7.2]
[1757601044212,7.04496387,225.97,225.84,7.2]
[1757601044404,7.04496387,225.96,225.84,7.2]
[1757601044710,3.49547566,225.95,225.84,7.2]
[1757601045003,3.5510827,225.94,225.84,7.2]
[1757601045309,3.5510827,225.93,225.84,7.2]
[1757601045499,3.5510827,225.92,225.84,7.2]
[1757601045704,7.16,225.98,225.84,7.2]
[1757601046006,7.16,225.96,225.84,7.2]
[1757601046309,7.06137612,225.95,225.84,7.2]
[1757601046611,7.06137612,225.94,225.84,7.2]
[1757601046803,3.56479243,225.93,225.84,7.2]
[1757601047005,3.56479243,225.92,225.84,7.2]
[1757601047205,7.16,225.96,225.84,7.2]
[1757601047401,7.06299625,225.95,225.84,7.2]
[1757601047609,3.56561808,225.94,225.84,7.2]
[1757601047798,3.56561808,225.93,225.84,7.2]
[1757601048003,3.56561808,225.92,225.84,7.2]
[1757601048204,7.16,225.96,225.84,7.2]
[1757601048404,7.06439816,225.95,225.84,7.2]
[1757601048699,3.56629037,225.94,225.84,7.2]
[1757601048908,3.56629037,225.93,225.84,7.2]
[1757601049105,7.16,225.96,225.84,7.2]
[1757601049304,7.06634738,225.95,225.84,7.2]
[1757601049504,3.56729816,225.94,225.84,7.2]
[1757601049709,3.56729816,225.93,225.84,7.2]
[1757601050010,7.16,225.96,225.84,7.2]
[1757601050210,7.06828956,225.95,225.84,7.2]
[1757601050409,7.16,225.93,225.84,7.2]
[1757601050914,7.0733651,225.92,225.84,7.2]
[1757601051108,3.57084268,225.91,225.84,7.2]
[1757601051310,3.57084268,225.9,225.84,7.2]
[1757601051506,7.16,225.93,225.84,7.2]
[1757601051706,7.07271037,225.92,225.84,7.2]
[1757601051909,3.57052767,225.91,225.84,7.2]
[1757601052202,3.57052767,225.9,225.84,7.2]
[1757601052406,7.16,225.93,225.84,7.2]
[1757601052602,10.0804637,225.92,225.84,7.2]
[1757601052807,3.57305482,225.91,225.84,7.2]
[1757601053009,3.57305482,225.9,225.84,7.2]
[1757601053211,7.16,225.93,225.84,7.2]
[1757601053409,10.07944106,225.92,225.84,7.2]
[1757601053611,3.57271361,225.91,225.84,7.2]
[1757601053813,3.57271361,225.9,225.84,7.2]
[1757601054012,7.16,225.93,225.84,7.2]
[1757601054311,7.07627485,225.92,225.84,7.2]
[1757601054513,3.57237494,225.91,225.84,7.2]
[1757601054707,3.57237494,225.9,225.84,7.2]
[1757601054907,7.16,225.93,225.84,7.2]
[1757601055113,7.07458332,225.92,225.84,7.2]
[1757601055312,3.57131247,225.91,225.84,7.2]
[1757601055512,7.16,225.97,225.84,7.2]
[1757601055713,10.07870879,225.96,225.84,7.2]
[1757601055915,10.07870879,225.95,225.84,7.2]
[1757601056111,10.09079519,225.94,225.84,7.2]
[1757601056314,3.5723817,225.93,225.84,7.2]
[1757601056514,3.5723817,225.92,225.84,7.2]
[1757601056719,7.16,225.97,225.84,7.2]
[1757601056921,10.08672274,225.96,225.84,7.2]
[1757601057115,3.57069467,225.95,225.84,7.2]
[1757601057316,3.57069467,225.94,225.84,7.2]
[1757601057615,7.47,226.02,225.87,3.46054478]
[1757601057918,7.47,226.05,225.92,6.99]
[1757601058124,3.57412608,226.04,225.92,6.99]
[1757601058419,3.57412608,226.03,225.94,6.99]
[1757601058608,7.47,226.05,225.94,6.99]
[1757601058812,3.57129005,226.04,225.94,6.99]
[1757601059022,7.47,226.05,225.94,6.99]
[1757601059207,3.46630598,226.04,225.94,6.99]
[1757601059411,7.47,226.05,225.94,6.99]
[1757601060716,7.47,226.03,225.94,6.99]
[1757601060922,3.46239565,226.02,225.94,6.99]
[1757601061120,7.47,226.03,225.94,6.99]
[1757601061311,7.47,226.01,225.88,6.99]
[1757601061520,7.47,225.99,225.88,6.99]
[1757601062117,7.47,225.97,225.87,297.5]
[1757601062323,7.47,225.97,225.88,6.99]
[1757601062517,7.47,225.97,225.87,297.5]
[1757601062717,3.45665428,225.96,225.84,6.99]
[1757601062920,7.47,225.97,225.84,6.99]
[1757601063122,3.45565376,225.96,225.84,6.99]
[1757601063322,7.47,225.97,225.84,6.99]
[1757601063524,3.45644488,225.96,225.84,6.99]
[1757601063718,7.47,225.97,225.84,6.99]
[1757601063923,3.45693373,225.96,225.84,6.99]
[1757601064141,7.47,225.97,225.84,6.99]
[1757601064620,3.46054478,226.01,225.84,6.99]
[1757601064819,3.45482067,226.0,225.84,6.99]
[1757601065024,3.46054478,226.01,225.84,6.99]
[1757601065224,7.47,226.02,225.86,6.99]
[1757601066127,7.47,226.08,225.86,6.99]
[1757601066327,9.75081068,226.07,225.86,6.99]
[1757601066631,7.47,226.05,225.86,6.99]
[1757601066924,3.45965154,226.04,225.86,6.99]
[1757601067127,7.47,226.05,225.86,6.99]
[1757601067324,3.45813701,226.04,225.88,6.99]
[1757601067526,7.47,226.05,225.88,6.99]
[1757601067725,3.45787664,226.04,225.88,6.99]
[1757601067923,7.47,226.05,225.88,6.99]
[1757601068124,3.45811992,226.04,225.88,6.99]
[1757601068325,7.47,226.05,225.88,6.99]
[1757601068525,3.45722409,226.04,225.88,6.99]
[1757601068725,7.47,226.05,225.9,6.99]
[1757601069025,3.45749677,226.04,225.9,6.99]
[1757601069224,7.47,226.05,225.9,6.99]
[1757601069421,7.47,226.11,225.9,6.99]
[1757601069626,6.4477719,226.1,225.9,6.99]
[1757601069829,3.45586431,226.09,225.9,6.99]
[1757601070028,7.47,226.11,225.9,6.99]
[1757601070728,7.47,226.11,225.91,6.99]
[1757601070928,7.47,226.11,225.91,13.34600163]
[1757601071132,7.47,226.17,225.92,6.99]
[1757601071343,7.47,226.15,225.92,6.99]
[1757601071633,7.47,226.15,225.93,6.99]
[1757601071931,7.47,226.15,225.94,6.99]
[1757601072327,114.12,226.24,225.95,6.99]
[1757601072328,7.47,226.23,225.95,6.99]
[1757601072527,7.47,226.21,225.95,6.99]
[1757601072739,7.47,226.19,225.97,6.99]
[1757601073326,7.47,226.17,225.99,6.99]
[1757601073728,7.47,226.18,226.0,69.84]
[1757601073929,3.44875654,226.17,226.0,69.84]
[1757601074232,8.70569272,226.19,226.0,69.84]
[1757601074433,7.47,226.17,225.99,6.99]
[1757601074630,7.47,226.18,225.99,49.67]
[1757601075330,8.70569272,226.19,225.99,49.67]
[1757601075528,7.47,226.17,226.0,6.99]
[1757601076531,19.7,226.26,225.92,62.0]
[1757601076532,7.47,226.22,226.01,68.46]
[1757601076733,7.47,226.22,226.03,6.99]
[1757601077032,7.47,226.25,226.05,6.99]
[1757601077233,7.47,226.23,226.06,4.06]
[1757601077736,7.47,226.23,226.07,6.99]
[1757601078738,7.47,226.23,226.08,11.72]
[1757601079334,7.47,226.23,226.09,18.5]
[1757601079641,7.47,226.23,226.09,24.34]
[1757601079830,7.47,226.23,226.09,29.88]
[1757601080029,7.47,226.23,226.07,6.99]
[1757601080237,7.47,226.23,226.08,7.86]
[1757601080429,7.47,226.23,226.09,14.84]
[1757601080631,7.47,226.23,226.1,6.99]
[1757601081135,8.70569272,226.29,226.1,6.99]
[1757601081136,7.47,226.31,226.1,6.99]
[1757601081341,7.47,226.31,226.12,6.99]
[1757601082134,7.47,226.31,226.14,6.99]
[1757601082837,7.47,226.35,226.15,64.26]
[1757601083139,7.47,226.33,226.15,70.18]
[1757601083337,7.47,226.31,226.14,6.99]
[1757601083838,7.47,226.29,226.14,6.99]
[1757601084051,49.24,226.34,226.14,6.99]
[1757601084052,7.47,226.27,226.14,6.99]
[1757601084448,7.47,226.35,226.14,6.99]
[1757601084649,3.43277652,226.34,226.16,6.99]
[1757601084950,7.47,226.35,226.16,6.99]
[1757601085247,3.43037236,226.34,226.16,6.99]
[1757601085444,7.47,226.35,226.16,6.99]
[1757601088058,7.42,226.39,226.16,6.99]
[1757601088252,7.42,226.39,226.17,87.38]
[1757601088450,7.42,226.39,226.18,7.02]
[1757601088648,7.42,226.46,226.2,7.02]
[1757601088851,7.42,226.46,226.22,7.02]
[1757601089053,7.42,226.46,226.24,7.02]
[1757601089655,7.42,226.48,226.26,7.02]
[1757601089853,7.42,226.46,226.26,7.02]
[1757601090050,3.42270611,226.45,226.27,60.44]
[1757601090249,7.42,226.44,226.28,7.02]
[1757601090449,0.28527963,226.56,226.28,7.02]
[1757601090751,7.42,226.54,226.22,20.3]
[1757601090957,7.42,226.52,226.24,7.02]
[1757601091151,7.42,226.5,226.24,7.02]
[1757601091352,7.42,226.5,226.25,62.0]
[1757601091567,7.42,226.5,226.26,7.02]
[1757601091857,7.42,226.5,226.28,7.02]
[1757601092246,7.42,226.5,226.21,332.24934752]
[1757601092247,7.42,226.5,226.3,7.02]
[1757601092558,0.28527963,226.56,226.32,7.02]
[1757601093257,0.28527963,226.56,226.34,7.02]
[1757601094754,0.28527963,226.56,226.36,7.02]
[1757601094954,0.28527963,226.56,226.4,7.02]
[1757601095262,0.28527963,226.56,226.41,107.04]
[1757601095462,0.28527963,226.56,226.42,7.02]
[1757601097563,0.28527963,226.56,226.43,62.28]
[1757601097763,7.70527963,226.56,226.43,62.28]
[1757601098454,0.28527963,226.56,226.44,7.02]
[1757601099058,0.28527963,226.56,226.45,107.08]
[1757601099059,7.70527963,226.56,226.45,107.08]
[1757601099255,7.70527963,226.56,226.44,7.02]
[1757601099463,7.70527963,226.56,226.29,62.0]
[1757601099464,7.42,226.55,226.41,6.66]
[1757601099662,7.42,226.55,226.39,7.02]
[1757601101161,7.42,226.55,226.37,6.66]
[1757601101359,0.28527963,226.56,226.35,20.16914512]
[1757601101556,0.28527963,226.56,226.36,55.1]
[1757601101961,7.42,226.55,226.36,55.1]
[1757601102157,7.42,226.55,226.35,7.02]
[1757601102357,0.28527963,226.56,226.36,81.36]
[1757601102552,0.28527963,226.56,226.35,64.28]
[1757601102758,7.42,226.55,226.36,7.02]
[1757601103964,7.42,226.55,226.37,58.06]
[1757601104165,7.42,226.55,226.38,7.02]
[1757601104459,7.42,226.55,226.39,83.96]
[1757601104865,7.70527963,226.56,226.4,7.02]
[1757601106266,7.70527963,226.56,226.42,7.02]
[1757601113970,7.70527963,226.56,226.43,11.18]
[1757601114170,7.70527963,226.56,226.44,7.02]
[1757601117068,7.70527963,226.56,226.44,15.7]
[1757601117270,0.28527963,226.56,226.45,7.02]
[1757601118071,0.28527963,226.56,226.44,8.68]
[1757601118072,0.28527963,226.56,226.47,7.16]
[1757601119382,0.28527963,226.56,226.49,7.16]
[1757601119774,0.28527963,226.56,226.51,7.16]
[1757601119973,0.28527963,226.56,226.46,296.7]
[1757601120277,0.28527963,226.56,226.48,7.16]
[1757601120872,0.28527963,226.56,226.49,113.62]
[1757601121078,0.28527963,226.56,226.5,7.16]
[1757601121474,0.31831353,226.63,226.5,7.16]
[1757601123475,0.31831353,226.63,226.52,7.16]
[1757601123677,0.31831353,226.63,226.53,113.6]
[1757601123869,0.31831353,226.63,226.52,7.16]
[1757601124073,0.31831353,226.63,226.53,113.6]
[1757601124582,0.31831353,226.63,226.54,113.6]
[1757601125679,0.31831353,226.63,226.52,7.16]
[1757601125875,10.36493805,226.62,226.53,113.58]
[1757601126072,6.92,226.62,226.53,113.58]
[1757601126681,6.92,226.62,226.52,7.16]
[1757601126978,6.92,226.6,226.47,7.16]
[1757601127285,3.44834841,226.59,226.48,113.58]
[1757601127483,6.92,226.6,226.47,7.16]
[1757601127684,3.4485088,226.59,226.48,113.58]
[1757601127983,6.92,226.6,226.47,7.16]
[1757601128376,6.92,226.62,226.4,7.16]
[1757601128581,6.92,226.6,226.42,7.16]
[1757601128785,6.92,226.6,226.44,7.16]
[1757601129882,6.92,226.6,226.45,105.58]
[1757601130083,3.45514509,226.59,226.44,7.16]
[1757601130279,6.92,226.58,226.45,61.86]
[1757601130485,0.31831353,226.63,226.46,113.56]
[1757601130685,9.88821269,226.62,226.44,7.16]
[1757601130985,3.45933309,226.61,226.46,7.16]
[1757601131182,3.45933309,226.61,226.39,385.15]
[1757601131183,3.45933309,226.6,226.47,113.56]
[1757601131481,3.45933309,226.59,226.48,7.16]
[1757601131687,6.92,226.62,226.5,7.16]
[1757601131877,3.46175865,226.61,226.5,7.16]
[1757601132085,0.31831353,226.63,226.52,7.16]
[1757601132283,0.31831353,226.63,226.54,7.16]
[1757601133389,0.31831353,226.63,226.55,63.36]
[1757601134186,0.31831353,226.63,226.56,67.0]
[1757601134489,7.23831353,226.63,226.55,70.46]
[1757601134886,0.31831353,226.63,226.55,70.46]
[1757601135285,0.31831353,226.63,226.56,7.16]
[1757601136990,0.31831353,226.63,226.57,11.42]
[1757601138383,0.31831353,226.63,226.58,7.16]
[1757601138591,0.31831353,226.63,226.57,11.42]
[1757601139091,0.31831353,226.63,226.58,7.16]
[1757601139287,0.35134744,226.71,226.58,7.16]
[1757601139487,0.38438134,226.78,226.59,7.16]
[1757601139788,0.38438134,226.78,226.6,52.9]
[1757601139992,0.38438134,226.78,226.61,7.16]
[1757601142589,0.38438134,226.78,226.63,7.16]
[1757601142995,0.38438134,226.78,226.65,7.16]
[1757601143193,0.38438134,226.78,226.66,113.5]
[1757601143392,0.38438134,226.78,226.67,7.16]
[1757601143587,0.38438134,226.78,226.68,113.5]
[1757601144098,0.38438134,226.78,226.67,7.16]
[1757601144099,0.38438134,226.78,226.69,120.66]
[1757601144892,0.38438134,226.78,226.7,113.48]
[1757601145391,0.38438134,226.78,226.69,7.16]
[1757601145597,0.38438134,226.78,226.7,113.48]
[1757601146398,0.38438134,226.78,226.71,7.16]
[1757601147498,0.38438134,226.78,226.72,113.46]
[1757601148504,0.38438134,226.78,226.71,7.16]
[1757601148703,0.38438134,226.78,226.72,32.3]
[1757601148900,0.38438134,226.78,226.71,7.16]
[1757601149103,0.38438134,226.78,226.72,67.86]